bitfinex/quotes_SOLUSD_20251128
["timestamp","ask_amount","ask_price","bid_price","bid_amount"]
[1764345847765,9.40212439,141.46,141.43,0.72]
[1764345848673,10.02212439,141.46,141.43,3.86]
[1764345848986,9.40212439,141.46,141.43,3.86]
[1764345849189,7.069492,141.46,141.43,3.86]
[1764345849363,9.40212439,141.46,141.43,3.86]
[1764345850084,7.069492,141.46,141.44,0.72]
[1764345850290,9.40212439,141.46,141.44,0.72]
[1764345850461,2.33263239,141.46,141.44,0.72]
[1764345850661,9.40178626,141.46,141.44,0.72]
[1764345851659,2.95263239,141.45,141.43,3.14]
[1764345851981,2.33263239,141.45,141.42,3.82]
[1764345852575,9.40178626,141.46,141.43,0.68]
[1764345852772,2.33263239,141.45,141.42,3.14]
[1764345852972,2.33263239,141.45,141.43,0.68]
[1764345853181,7.069846,141.45,141.43,0.68]
[1764345853688,9.40187113,141.46,141.43,0.68]
[1764345853983,9.40187113,141.46,141.43,9.48994492]
[1764345854788,2.33263239,141.45,141.42,3.83]
[1764345854966,2.33263239,141.45,141.43,0.69]
[1764345855668,9.40223296,141.46,141.43,3.83]
[1764345855873,9.40223296,141.46,141.43,12.63994492]
[1764345857221,2.33263239,141.46,141.43,12.63994492]
[1764345857393,7.06887434,141.47,141.43,3.14]
[1764345857394,2.95263239,141.45,141.43,3.14]
[1764345857690,7.07063565,141.43,141.4,0.69]
[1764345857994,9.40326804,141.43,141.4,0.69]
[1764345858294,9.40326804,141.43,141.4,0.83216157]
[1764345858971,9.40326804,141.43,141.35,24.90085198]
[1764345858972,2.33263239,141.41,141.35,24.90085198]
[1764345859172,2.33263239,141.41,141.37,8.80994492]
[1764345859477,2.33263239,141.41,141.38,0.14216157]
[1764345859684,9.40437435,141.41,141.39,11.94994492]
[1764345860180,2.33263239,141.41,141.39,12.63994492]
[1764345860590,9.40385162,141.42,141.39,12.63994492]
[1764345862224,9.40385162,141.42,141.39,8.80994492]
[1764345862403,2.33263239,141.41,141.39,3.14]
[1764345863006,2.33263239,141.41,141.36,7.76367073]
[1764345863210,2.33263239,141.4,141.37,12.63994492]
[1764345863409,24.74905829,141.42,141.37,3.83]
[1764345863613,24.74905829,141.42,141.38,3.02263239]
[1764345863813,41.20008386,141.42,141.38,3.02263239]
[1764345864014,24.74905829,141.42,141.39,0.69]
[1764345865321,27.08169068,141.42,141.39,0.69]
[1764345865727,27.08169068,141.42,141.4,3.14]
[1764345866131,27.08169068,141.42,141.4,3.83]
[1764345866619,24.74905829,141.42,141.4,3.83]
[1764345867126,27.08169068,141.42,141.4,3.83]
[1764345869237,2.33263239,141.41,141.39,3.14]
[1764345869413,2.33263239,141.41,141.38,3.83]
[1764345869922,7.07213578,141.4,141.39,0.69]
[1764345870125,7.07213578,141.4,141.38,3.83]
[1764345870517,7.07213578,141.4,141.39,0.69]
[1764345871036,7.07164814,141.41,141.39,0.69]
[1764345872213,9.40428053,141.41,141.37,0.28432314]
[1764345872428,27.0833697,141.41,141.38,3.83]
[1764345872938,2.33263239,141.4,141.38,3.83]
[1764345873427,45.30002687,141.41,141.38,3.83]
[1764345874032,27.0833697,141.41,141.38,3.83]
[1764345874239,27.7033697,141.41,141.38,3.83]
[1764345874738,45.92006064,141.41,141.38,3.83]
[1764345875244,45.92006064,141.41,141.38,0.69]
[1764345877455,2.33263239,141.4,141.37,3.14]
[1764345877627,2.33263239,141.4,141.38,0.69]
[1764345877828,45.92006064,141.41,141.38,0.69]
[1764345878651,2.33263239,141.39,141.35,3.83]
[1764345878833,2.33263239,141.39,141.34,8.80994492]
[1764345878834,2.33263239,141.37,141.33,3.83]
[1764345879036,2.33263239,141.37,141.33,0.69]
[1764345879349,18.21669094,141.36,141.33,3.83]
[1764345879658,7.07463742,141.35,141.33,3.83]
[1764345880371,7.07463742,141.35,141.33,3.14]
[1764345880657,7.07463742,141.35,141.33,3.83]
[1764345880858,27.09135034,141.37,141.34,0.69]
[1764345881156,16.4832227,141.37,141.34,3.02263239]
[1764345881373,16.4832227,141.37,141.35,0.69]
[1764345881524,9.4091371,141.37,141.35,0.69]
[1764345881838,7.07309864,141.39,141.36,3.14]
[1764345882036,7.07309864,141.39,141.37,0.69]
[1764345882626,7.07309864,141.39,141.36,11.94994492]
[1764345882933,7.07309864,141.39,141.36,12.63994492]
[1764345883147,7.07309864,141.39,141.36,11.94994492]
[1764345883353,7.07309864,141.39,141.37,0.69]
[1764345884251,23.3810834,141.4,141.37,0.69]
[1764345884450,7.0722194,141.4,141.37,0.69]
[1764345887159,7.0722194,141.4,141.38,3.14]
[1764345887857,7.0722194,141.4,141.38,3.83]
[1764345888233,7.0722194,141.4,141.38,0.69]
[1764345889049,10.02485179,141.4,141.36,8.80994492]
[1764345889244,10.02485179,141.4,141.37,0.69]
[1764345889572,30.04477862,141.4,141.37,0.69]
[1764345889866,29.42477862,141.4,141.37,0.69]
[1764345890162,9.40485179,141.4,141.37,0.69]
[1764345890834,21.35479671,141.4,141.37,0.69]
[1764345892261,21.97479671,141.4,141.37,0.69]
[1764345892458,21.35479671,141.4,141.37,0.69]
[1764345893745,21.35479671,141.4,141.37,3.83]
[1764345894463,19.02216432,141.4,141.37,3.83]
[1764345894666,7.0722194,141.4,141.37,3.83]
[1764345894861,9.40485179,141.4,141.37,3.83]
[1764345895240,7.0722194,141.4,141.37,3.83]
[1764345896144,9.40485179,141.4,141.37,3.83]
[1764345898277,10.02485179,141.4,141.37,3.83]
[1764345898444,9.40485179,141.4,141.37,3.83]
[1764345899397,18.81188563,141.4,141.37,3.83]
[1764345901579,9.40485179,141.4,141.37,3.83]
[1764345901789,7.0722194,141.4,141.37,3.83]
[1764345902092,9.40485179,141.4,141.37,3.83]
[1764345902685,10.71748779,141.4,141.37,3.83]
[1764345903081,4.26526839,141.39,141.36,3.14]
[1764345903394,4.26526839,141.39,141.36,3.83]
[1764345903593,24.75255886,141.4,141.35,11.94994492]
[1764345903594,4.26526839,141.38,141.35,11.94994492]
[1764345903786,3.64526839,141.36,141.32,9.49994492]
[1764345903989,3.64526839,141.35,141.33,3.14]
[1764345904189,3.64526839,141.36,141.33,3.83]
[1764345904384,0.62,141.37,141.33,3.83]
[1764345904614,3.64526839,141.36,141.33,3.14]
[1764345904784,4.26526839,141.37,141.34,0.69]
[1764345904986,7.07413695,141.36,141.34,0.69]
[1764345905195,10.71940534,141.36,141.34,0.69]
[1764345906284,7.07413695,141.36,141.34,0.69]
[1764345907511,10.71890494,141.37,141.34,9.49994492]
[1764345908286,10.71890494,141.37,141.34,16.57504992]
[1764345908807,10.71890494,141.37,141.34,15.88504992]
[1764345909014,10.71890494,141.37,141.34,16.57504992]
[1764345909628,7.07263597,141.39,141.36,8.80994492]
[1764345909792,7.07263597,141.39,141.36,11.94994492]
[1764345909793,10.71790436,141.39,141.36,11.94994492]
[1764345909993,10.71790436,141.39,141.37,0.69]
[1764345910207,3.64526839,141.39,141.37,0.69]
[1764345910603,3.64526839,141.38,141.36,3.83]
[1764345911027,3.64526839,141.39,141.36,3.83]
[1764345911404,3.64526839,141.39,141.36,3.14]
[1764345911621,3.64526839,141.39,141.37,0.7]
[1764345912001,10.71799737,141.39,141.37,0.7]
[1764345912811,3.64526839,141.39,141.37,0.7]
[1764345913008,3.64526839,141.39,141.36,10.91408229]
[1764345913325,7.69182981,141.41,141.37,0.7]
[1764345913326,3.64526839,141.4,141.37,0.7]
[1764345913715,3.64526839,141.39,141.37,0.7]
[1764345914795,10.7179592,141.39,141.36,3.14]
[1764345915124,10.7179592,141.39,141.29,0.71]
[1764345915125,21.25,141.36,141.29,0.71]
[1764345915298,3.64526839,141.3,141.28,0.71]
[1764345915498,3.64526839,141.29,141.28,0.71]
[1764345915707,3.64526839,141.3,141.28,0.71]
[1764345916095,7.07664001,141.31,141.28,0.71]
[1764345916428,3.64526839,141.3,141.28,0.71]
[1764345916895,3.64526839,141.29,141.28,0.71]
[1764345917821,3.64526839,141.29,141.27,0.71]
[1764345918324,7.69674811,141.31,141.27,0.71]
[1764345918624,19.95413239,141.28,141.25,0.1]
[1764345918827,7.29053678,141.26,141.25,0.1]
[1764345919000,23.59940078,141.23,141.16,44.15588218]
[1764345919204,16.308864,141.19,141.16,40.46143251]
[1764345919523,3.64526839,141.17,141.16,40.46143251]
[1764345919828,3.64526839,141.17,141.08,0.71]
[1764345920132,0.52,141.18,141.08,0.71]
[1764345920133,7.29053678,141.12,141.08,0.71]
[1764345920323,14.37670458,141.12,141.08,0.71]
[1764345920526,14.37670458,141.12,141.11,3.63271854]
[1764345920527,3.64526839,141.12,141.11,3.63271854]
[1764345920832,7.0854981,141.14,141.11,3.63271854]
[1764345921054,7.0854981,141.14,141.12,0.71]
[1764345921055,3.64526839,141.14,141.12,0.71]
[1764345921222,7.08444412,141.16,141.11,3.63271854]
[1764345921223,25.31484366,141.16,141.11,3.63271854]
[1764345921527,3.64526839,141.14,141.12,0.71]
[1764345921730,7.08444412,141.16,141.12,0.71]
[1764345921938,3.64526839,141.15,141.12,0.71]
[1764345922106,3.64526839,141.14,141.12,0.71]
[1764345922310,23.3926037,141.17,141.12,10.93616686]
[1764345922507,10.22294918,141.19,141.14,3.64526839]
[1764345922806,10.72821757,141.19,141.15,3.64526839]
[1764345923007,10.72821757,141.19,141.13,0.71]
[1764345923231,7.08294918,141.19,141.14,3.64526839]
[1764345923538,3.64526839,141.18,141.14,3.64526839]
[1764345923709,3.64526839,141.18,141.15,0.71]
[1764345923909,10.72821757,141.19,141.15,0.71]
[1764345925225,10.72821757,141.19,141.13,7.49526839]
[1764345925226,3.64526839,141.17,141.13,7.49526839]
[1764345925421,3.64526839,141.17,141.13,3.85]
[1764345925618,3.64526839,141.17,141.14,0.71]
[1764345926237,3.64526839,141.17,141.13,3.14]
[1764345926531,3.64526839,141.14,141.11,2.92271854]
[1764345926750,9.71377945,141.12,141.11,2.92271854]
[1764345926916,10.23377945,141.12,141.11,2.92271854]
[1764345927643,17.31994725,141.12,141.11,2.92271854]
[1764345927816,33.62881125,141.12,141.11,2.92271854]
[1764345928311,23.9150318,141.12,141.11,2.92271854]
[1764345928561,33.62881125,141.12,141.11,2.92271854]
[1764345929236,51.34423075,141.12,141.03,42.47997245]
[1764345929546,9.71377945,141.06,141.03,42.47997245]
[1764345929949,16.80273406,141.07,141.04,0.71]
[1764345930232,16.80273406,141.07,141.03,41.76997245]
[1764345930233,16.308864,141.04,141.03,41.76997245]
[1764345930442,26.02264345,141.04,141.03,41.76997245]
[1764345930615,0.52,141.06,141.03,41.76997245]
[1764345930815,9.71377945,141.04,141.03,41.76997245]
[1764345931228,9.71377945,141.05,141.03,41.76997245]
[1764345931428,9.71377945,141.07,141.04,0.71]
[1764345931746,16.80248589,141.07,141.04,0.71]
[1764345932239,16.80198463,141.08,141.04,10.42377945]
[1764345932435,41.11587987,141.1,141.06,9.71377945]
[1764345932623,21.37667434,141.12,141.04,7.8001433]
[1764345932624,16.80047008,141.11,141.07,9.71377945]
[1764345932824,9.71377945,141.12,141.07,3.14]
[1764345933141,9.71377945,141.1,141.07,0.71]
[1764345933336,9.71377945,141.1,141.05,3.85]
[1764345933509,39.01048611,141.13,141.08,9.71377945]
[1764345933510,28.90125721,141.13,141.08,9.71377945]
[1764345933715,9.71377945,141.1,141.03,41.76997245]
[1764345933932,9.71377945,141.1,141.06,3.14]
[1764345934218,9.71377945,141.1,141.06,12.85377945]
[1764345934417,9.71377945,141.1,141.06,13.56377945]
[1764345934618,9.71377945,141.1,141.06,3.85]
[1764345935025,7.08767453,141.09,141.06,3.85]
[1764345935224,7.60767453,141.09,141.03,51.4837519]
[1764345935426,7.60767453,141.09,141.04,13.56377945]
[1764345935427,9.71377945,141.08,141.04,13.56377945]
[1764345935635,17.32145398,141.09,141.04,13.56377945]
[1764345935835,17.32145398,141.09,141.05,9.71377945]
[1764345936011,17.32145398,141.09,141.05,10.42377945]
[1764345936742,10.23377945,141.09,141.05,0.71]
[1764345936938,10.23377945,141.09,141.04,9.71377945]
[1764345937117,16.80195637,141.08,141.04,10.42377945]
[1764345937424,9.71377945,141.07,141.03,51.4837519]
[1764345937615,0.52,141.07,141.03,41.76997245]
[1764345937816,9.71377945,141.07,141.04,0.71]
[1764345938717,24.80861922,141.08,141.04,0.71]
[1764345938941,16.80149295,141.09,141.05,9.71377945]
[1764345939252,16.80149295,141.09,141.05,12.85377945]
[1764345939456,16.80149295,141.09,141.05,13.56377945]
[1764345939920,16.80149295,141.09,141.06,0.71]
[1764345940317,9.71377945,141.07,141.04,3.14]
[1764345940530,0.52,141.08,141.04,3.14]
[1764345940731,10.23377945,141.08,141.04,3.14]
[1764345940944,24.80689983,141.09,141.05,0.67]
[1764345941141,34.52067928,141.09,141.05,0.67]
[1764345941437,9.71377945,141.04,141.03,41.24997245]
[1764345942648,16.80396663,141.04,141.03,41.24997245]
[1764345944321,16.80396663,141.04,141.03,40.91751245]
[1764345944516,7.09018718,141.04,141.03,41.58751245]
[1764345944770,28.39552508,141.06,141.03,51.3012919]
[1764345945047,21.30606157,141.06,141.05,9.71377945]
[1764345945419,7.08841063,141.08,141.05,13.52377945]
[1764345945619,7.08841063,141.08,141.06,0.67]
[1764345947649,9.71377945,141.09,141.06,0.67]
[1764345948245,24.80540645,141.1,141.06,0.67]
[1764345948436,9.71377945,141.09,141.06,0.67]
[1764345948942,7.08817692,141.08,141.06,0.67]
[1764345949522,9.71377945,141.07,141.03,40.91751245]
[1764345949846,9.71377945,141.06,141.03,41.58751245]
[1764345951150,7.0896845,141.05,141.03,41.58751245]
[1764345951540,7.0896845,141.05,141.03,40.91751245]
[1764345952356,72.9941519,141.11,141.03,40.91751245]
[1764345952357,34.52273695,141.08,141.04,13.52377945]
[1764345952656,7.08759396,141.1,141.07,9.71377945]
[1764345952860,9.71377945,141.12,141.08,9.71377945]
[1764345953064,60.2324263,141.12,141.05,0.67]
[1764345953264,9.71377945,141.07,141.05,0.67]
[1764345955070,7.0891819,141.06,141.05,0.67]
[1764345955671,16.80258985,141.07,141.05,0.67]
[1764345955873,7.0888104,141.07,141.05,0.67]
[1764345956264,16.80258985,141.07,141.05,0.67]
[1764345958618,27.95050884,141.07,141.03,40.91751245]
[1764345958900,9.71377945,141.05,141.03,41.58751245]
[1764345959182,16.80396663,141.04,141.03,40.91751245]
[1764345960088,7.09018718,141.04,141.03,40.91751245]
[1764345960281,16.80396663,141.04,141.03,40.91751245]
[1764345960982,19.94396663,141.04,141.03,1e-08]
[1764345961679,7.09018718,141.04,141.03,0.67000001]
[1764345962293,24.81368775,141.06,141.03,0.67000001]
[1764345962490,24.81368775,141.06,141.03,10.38377946]
[1764345962788,34.5274672,141.06,141.03,0.67000001]
[1764345962988,24.81368775,141.06,141.03,1e-08]
[1764345963296,9.71377945,141.06,141.03,0.67000001]
[1764345963993,9.71377945,141.06,141.03,3.83000001]
[1764345964379,7.0896845,141.05,141.04,0.67]
[1764345964966,17.7204423,141.08,141.04,0.67]
[1764345965169,7.08867937,141.07,141.04,0.67]
[1764345965367,7.08867937,141.07,141.05,8.74198789]
[1764345965793,7.08867937,141.07,141.06,0.67]
[1764345966180,24.80861922,141.08,141.06,0.67]
[1764345966783,30.39060711,141.08,141.06,0.67]
[1764345966984,24.80861922,141.08,141.06,0.67]
[1764345967186,30.39060711,141.08,141.06,0.67]
[1764345967391,5.58198789,141.07,141.05,3.16]
[1764345967592,5.58198789,141.07,141.05,3.83]
[1764345967783,24.80861922,141.08,141.05,3.83]
[1764345968301,5.58198789,141.07,141.05,3.83]
[1764345968496,7.08867937,141.07,141.06,0.67]
[1764345968792,23.29982998,141.11,141.06,6.25198789]
[1764345968996,12.6691601,141.1,141.06,0.67]
[1764345969183,12.6691601,141.1,141.07,0.67]
[1764345969565,5.58198789,141.09,141.07,0.67]
[1764345969876,5.58198789,141.08,141.03,0.67000001]
[1764345970076,27.96510275,141.1,141.04,0.67]
[1764345970284,5.58198789,141.06,141.04,0.67]
[1764345970483,7.0896845,141.05,141.04,0.67]
[1764345971777,12.67134405,141.06,141.04,0.67]
[1764345971975,5.58198789,141.07,141.04,0.67]
[1764345972479,5.58198789,141.09,141.04,13.34209587]
[1764345972678,5.58198789,141.09,141.05,5.58198789]
[1764345972980,5.58198789,141.09,141.05,3.82]
[1764345973179,5.58198789,141.09,141.06,0.66]
[1764345973698,41.11054788,141.12,141.03,7.09049566]
[1764345973699,5.58198789,141.07,141.03,0.66000001]
[1764345973875,5.58198789,141.06,141.04,3.16]
[1764345974076,5.58198789,141.06,141.04,0.66]
[1764345974490,12.67167239,141.05,141.04,0.66]
[1764345976006,24.80689842,141.09,141.04,0.66]
[1764345976186,5.58198789,141.06,141.04,0.66]
[1764345976776,12.67157205,141.06,141.04,0.66]
[1764345977411,5.58198789,141.07,141.04,0.66]
[1764345977615,5.58198789,141.08,141.04,0.66]
[1764345978313,5.58198789,141.07,141.04,0.66]
[1764345978509,7.0891819,141.06,141.04,0.66]
[1764345979602,7.08890025,141.07,141.04,0.66]
[1764345980912,7.08890025,141.07,141.04,6.24198789]
[1764345981150,5.58198789,141.09,141.05,0.71]
[1764345981151,7.08836063,141.08,141.05,0.71]
[1764345981475,12.66988881,141.09,141.06,3.16]
[1764345981681,7.08790092,141.09,141.06,3.16]
[1764345981902,12.66988881,141.09,141.07,0.71]
[1764345982203,5.58198789,141.08,141.06,3.87]
[1764345982713,5.58198789,141.07,141.03,1e-08]
[1764345982885,5.58198789,141.06,141.05,3.16]
[1764345983086,5.58198789,141.06,141.03,1e-08]
[1764345983087,5.58198789,141.06,141.03,0.71000001]
[1764345983303,5.58198789,141.05,141.03,0.71000001]
[1764345983686,5.58198789,141.05,141.03,1e-08]
[1764345983895,5.58198789,141.04,141.03,1e-08]
[1764345984685,12.67217507,141.04,141.03,1e-08]
[1764345986020,12.67217507,141.04,141.03,0.71000001]
[1764345986021,7.09018718,141.04,141.03,0.71000001]
[1764345986221,12.67217507,141.04,141.03,1e-08]
[1764345987313,21.41416296,141.04,141.03,1e-08]
[1764345988214,16.308864,141.01,140.97,0.1]
[1764345988397,5.58198789,140.98,140.97,0.1]
[1764345988810,5.58198789,140.99,140.97,0.81]
[1764345989013,5.58198789,141.0,140.97,0.81]
[1764345989207,5.58198789,140.98,140.97,0.81]
[1764345989399,7.09286527,140.99,140.97,0.81]
[1764345989592,17.72943768,141.01,140.97,0.81]
[1764345989816,12.67436776,141.0,140.97,0.81]
[1764345990197,17.72943768,141.01,140.97,7.90362056]
[1764345990198,12.67386563,141.01,140.97,7.90362056]
[1764345990398,5.58198789,140.99,140.97,0.81]
[1764345990626,5.58198789,140.99,140.98,0.71]
[1764345990824,5.58198789,141.0,140.98,0.71]
[1764345991414,12.67442462,141.0,140.98,0.71]
[1764345991611,5.58198789,140.99,140.98,0.71]
[1764345991832,12.67442462,141.0,140.98,0.71]
[1764345992206,19.468864,141.04,140.98,0.71]
[1764345992431,44.28451941,141.04,140.98,0.71]
[1764345992632,5.58198789,141.01,140.98,0.71]
[1764345993105,41.12451941,141.04,140.98,0.71]
[1764345993106,5.58198789,141.02,140.98,0.71]
[1764345993304,5.58198789,141.02,140.98,6.29198789]
[1764345993500,7.09164187,141.02,140.98,7.80298661]
[1764345993736,12.67362976,141.02,140.99,0.71]
[1764345994113,5.58198789,141.01,140.99,0.71]
[1764345994837,12.67320058,141.02,140.99,0.71]
[1764345995005,104.1,141.03,140.99,0.71]
[1764345995336,116.77273299,141.03,140.99,0.71]
[1764345995900,5.58198789,141.05,141.0,5.58198789]
[1764345996235,5.58198789,141.06,141.01,6.29198789]
[1764345996443,5.58198789,141.09,141.04,5.58198789]
[1764345996742,5.58198789,141.09,141.02,11.96994492]
[1764345996743,7.0861678,141.12,141.05,6.29198789]
[1764345996936,5.58198789,141.11,141.06,6.29198789]
[1764345997446,5.58198789,141.11,141.07,0.71]
[1764345997617,5.58198789,141.09,141.07,0.71]
[1764345997827,12.67023874,141.08,141.07,0.71]
[1764345998029,12.66975402,141.09,141.07,0.71]
[1764345998845,12.66975402,141.09,141.05,3.16]
[1764345998846,5.58198789,141.08,141.05,0.71]
[1764345999142,5.58198789,141.07,141.01,5.86631103]
[1764345999331,5.58198789,141.06,141.02,0.71]
[1764345999535,5.58198789,141.06,141.02,3.87]
[1764346000009,5.58198789,141.06,141.03,0.71]
[1764346000337,12.67153257,141.06,141.03,0.71]
[1764346002134,7.08878087,141.07,141.03,0.71]
[1764346002443,5.58198789,141.07,141.03,13.66691374]
[1764346002649,5.58198789,141.08,141.03,13.66691374]
[1764346002851,12.66966242,141.09,141.04,6.24198789]
[1764346003009,12.66966242,141.09,141.04,0.66]
[1764346003010,5.58198789,141.08,141.04,0.66]
[1764346003211,5.58198789,141.07,141.05,0.66]
[1764346003515,24.80686086,141.09,141.05,0.66]
[1764346003727,5.58198789,141.07,141.05,0.66]
[1764346003930,24.8033449,141.11,141.05,0.66]
[1764346004214,5.58198789,141.07,141.05,0.66]
[1764346005345,12.67079544,141.07,141.05,0.66]
[1764346005523,5.58198789,141.09,141.05,0.66]
[1764346005726,5.58198789,141.1,141.05,13.3315403]
[1764346005916,5.58198789,141.1,141.05,7.74955241]
[1764346006249,5.58198789,141.1,141.06,0.66]
[1764346006439,12.66865786,141.11,141.06,6.24198789]
[1764346006637,12.66865786,141.11,141.07,5.58198789]
[1764346006826,12.66865786,141.11,141.07,3.82]
[1764346007021,12.66865786,141.11,141.08,0.66]
[1764346009839,12.66865786,141.11,141.06,0.66]
[1764346009840,5.58198789,141.09,141.06,0.66]
[1764346010142,5.58198789,141.07,141.06,0.66]
[1764346010956,24.8033449,141.11,141.06,0.66]
[1764346011249,5.58198789,141.08,141.06,0.66]
[1764346011454,12.66865786,141.11,141.06,6.24198789]
[1764346011621,12.66865786,141.11,141.07,5.58198789]
[1764346011828,12.66865786,141.11,141.07,6.24198789]
[1764346012028,30.38533279,141.11,141.08,0.66]
[1764346012944,5.58198789,141.1,141.08,0.66]
[1764346013139,5.58198789,141.09,141.05,3.14]
[1764346013340,5.58198789,141.08,141.06,0.66]
[1764346013857,5.58198789,141.07,141.06,0.66]
[1764346014030,5.58198789,141.08,141.06,0.66]
[1764346014967,30.38884875,141.09,141.06,0.66]
[1764346015434,24.80686086,141.09,141.06,0.66]
[1764346015635,30.38884875,141.09,141.06,0.66]
[1764346016241,51.73810567,141.13,141.06,0.66]
[1764346016242,5.58198789,141.1,141.06,0.66]
[1764346016455,24.8015873,141.12,141.06,6.24198789]
[1764346016742,5.58198789,141.1,141.06,6.24198789]
[1764346017260,5.58198789,141.1,141.07,0.66]
[1764346017427,60.2324263,141.12,141.07,0.66]
[1764346017632,60.2324263,141.12,141.06,5.58198789]
[1764346017972,5.58198789,141.1,141.06,0.66]
[1764346018445,60.2324263,141.12,141.06,0.66]
[1764346018632,5.58198789,141.1,141.06,0.66]
[1764346018956,60.2324263,141.12,141.06,0.66]
[1764346019267,5.58198789,141.08,141.02,9.46994492]
[1764346019436,5.58198789,141.07,141.03,0.66]
[1764346019836,5.58198789,141.07,141.03,6.24198789]
[1764346020346,5.58198789,141.07,141.04,0.66]
[1764346020655,5.58198789,141.05,141.0,0.66]
[1764346020859,5.58198789,141.03,141.0,0.66]
[1764346021180,5.58198789,141.03,140.98,7.09284413]
[1764346022345,12.67318062,141.02,140.98,3.8]
[1764346022549,7.09119273,141.02,140.99,5.58198789]
[1764346022760,7.09119273,141.02,140.99,6.24198789]
[1764346023077,7.09119273,141.02,141.0,0.66]
[1764346023277,7.09071022,141.03,141.01,5.58198789]
[1764346023457,104.1,141.04,141.02,6.24198789]
[1764346023646,104.1,141.04,141.03,5.58198789]
[1764346023851,104.1,141.08,141.04,9.09426806]
[1764346024057,30.38533279,141.11,141.04,8.03413074]
[1764346024378,30.38533279,141.11,141.07,5.58198789]
[1764346024552,30.38533279,141.11,141.03,10.37595647]
[1764346024553,9.71595647,141.08,141.03,10.37595647]
[1764346024749,9.71595647,141.07,141.03,13.51595647]
[1764346025346,9.71595647,141.06,141.03,3.8]
[1764346025660,9.71595647,141.07,141.03,3.8]
[1764346026061,9.71595647,141.07,141.04,0.66]
[1764346026263,7.0891819,141.06,141.04,0.66]
[1764346027585,9.71595647,141.05,141.0,0.66]
[1764346027769,9.71595647,141.04,141.01,0.66]
[1764346028177,3.14,141.07,141.01,10.37595647]
[1764346028360,17.72126799,141.08,141.01,10.37595647]
[1764346028558,24.80944491,141.08,141.02,0.66]
[1764346028774,9.71595647,141.06,141.02,10.37595647]
[1764346028962,9.71595647,141.07,141.03,9.71595647]
[1764346029162,9.71595647,141.07,141.03,0.66]
[1764346029373,9.71595647,141.07,141.04,0.66]
[1764346029574,113.81595647,141.07,141.04,0.66]
[1764346030370,9.71595647,141.05,141.0,0.66]
[1764346030577,9.71595647,141.02,141.0,0.66]
[1764346030879,9.71595647,141.03,141.0,0.66]
[1764346032172,128.91565513,141.04,141.01,9.71595647]
[1764346032684,128.91565513,141.04,141.02,0.68]
[1764346032860,128.91565513,141.04,141.01,10.39595647]
[1764346033060,128.91565513,141.04,141.02,0.68]
[1764346033484,111.19018718,141.04,141.02,0.68]
[1764346033877,128.91565513,141.04,141.0,10.39595647]
[1764346034084,111.19018718,141.04,141.01,0.68]
[1764346034590,24.81917457,141.02,140.99,10.39595647]
[1764346034888,24.81917457,141.02,141.0,0.68]
[1764346035391,7.09083173,141.03,141.0,0.68]
[1764346035885,24.81755654,141.03,141.0,0.68]
[1764346036090,34.53351301,141.03,141.0,0.68]
[1764346036382,9.71595647,141.02,141.0,0.68]
[1764346036566,7.09169562,141.01,141.0,0.68]
[1764346037289,7.09131456,141.02,141.0,0.68]
[1764346038271,16.80727103,141.02,141.0,0.68]
[1764346039484,9.71595647,141.01,140.97,0.1]
[1764346039684,7.09131456,141.02,140.97,0.1]
[1764346039685,9.71595647,140.99,140.97,0.78]
[1764346039868,113.81595647,141.0,140.97,0.78]
[1764346040786,7.0932047,140.98,140.97,0.1]
[1764346041498,7.0932047,140.98,140.97,0.78]
[1764346042367,16.80916117,140.98,140.97,0.1]
[1764346043995,7.0932047,140.98,140.97,0.1]
[1764346044197,16.80916117,140.98,140.97,0.1]
[1764346045493,7.09270161,140.99,140.97,0.1]
[1764346045697,9.71595647,140.98,140.97,0.1]
[1764346046476,7.09270161,140.99,140.97,0.1]
[1764346046682,9.71595647,140.98,140.97,0.1]
[1764346047398,16.80916117,140.98,140.97,0.1]
[1764346047976,7.09281883,140.99,140.97,0.78]
[1764346048183,7.09281883,140.99,140.97,10.49595647]